Cogmind - Beta 11.1 @@@ ROGUE MODE // 2022.07.24 @ 13:31:20 Player: Triffids Result: Self-destructed Performance ------------- Evolutions (2) 1000 Regions Visited (3) 600 Robots Destroyed (45) 225 Value Destroyed (1035) 1035 Prototype IDs (0) 0 Alien Tech Used (0) 0 Bonus (57) 57 TOTAL SCORE: 2917 Bonus ------- High Alert Combat Kills 57 Cogmind --------- Core Integrity 487/550 Matter 243/300 Energy 290/290 System Corruption 0% Temperature Cool (0) Movement Walking (190) Ox1 Location -8/Materials Parts ------- > --- POWER (1) -------- Reinforced Deuterium Engine > --- PROPULSION (4) --- Aluminum Leg Aluminum Leg > --- UTILITY (4) ------ Cooling System Target Analyzer System Shield > --- WEAPON (2) ------- Particle Cannon Grenade Launcher > --- INVENTORY (5) ---- Reinforced Ion Engine Reinforced Deuterium Engine Hardened Light Armor Plating Hardlight Generator Medium Laser Peak State ------------ > --- POWER ------------ Reinforced Deuterium Engine > --- PROPULSION ------- Aluminum Leg Aluminum Leg Aluminum Leg Aluminum Leg > --- UTILITY ---------- Cooling System Target Analyzer Hardened Light Armor Plating System Shield > --- WEAPON ----------- Medium Laser Particle Cannon > --- INVENTORY -------- Reinforced Ion Engine Reinforced Deuterium Engine Hardened Light Armor Plating Hardlight Generator Grenade Launcher [Rating: 22] Favorites ----------- Power Ion Engine Engine Ion Engine Propulsion Aluminum Leg Leg Aluminum Leg Utility Hardened Light Armor Plating Device Heat Sink Storage Large Matter Pod Processor Target Analyzer Hackware System Shield Protection Hardened Light Armor Plating Weapon Medium Laser Energy Gun Medium Laser Energy Cannon Particle Cannon Launcher Grenade Launcher Build | -11 -10 -9 -8 ------- Run | Scr Mat Mat Mat Slots Evolved 4 | . . 2 2 Power . | . . . . Propulsion 2 | . . 2 . Utility 2 | . . . 2 Weapon . | . . . . Parts Attached 25 | 5 5 11 4 Power 3 | 1 . 1 1 Engine 3 | 1 . 1 1 Core . | . . . . Reactor . | . . . . Propulsion 6 | 2 1 3 . Treads . | . . . . Leg 6 | 2 1 3 . Wheel . | . . . . Hover . | . . . . Flight . | . . . . Utility 8 | . 4 2 2 Device 4 | . 3 1 . Storage 1 | . 1 . . Processor 1 | . . . 1 Hackware 1 | . . . 1 Protection 1 | . . 1 . Artifact . | . . . . Weapon 8 | 2 . 5 1 Energy Gun 4 | 2 . 2 . Energy Cannon 2 | . . 2 . Ballistic Gun . | . . . . Ballistic Cannon . | . . . . Launcher 2 | . . 1 1 Special Weapon . | . . . . Impact Weapon . | . . . . Slashing Weapon . | . . . . Piercing Weapon . | . . . . Special Melee Weapon . | . . . . Unidentified Prototypes . | . . . . Parts Lost 4 | . . 1 3 Power 1 | . . 1 . Propulsion 2 | . . . 2 Utility 1 | . . . 1 Weapon . | . . . . Highest Loss Streak 3 | . . 1 3 To Critical Strikes . | . . . . Average Slot Usage (%) 93 | . 95 92 98 Engine 11 | . 14 10 9 Leg 33 | . 28 37 35 Device 13 | . 17 11 9 Storage 2 | . 5 . . Protection 6 | . . 10 9 Energy Gun 20 | . 28 17 6 Energy Cannon 2 | . . 3 9 Naked Turns . | . . . . Heaviest Build 29 | 9 13 23 29 Greatest Support 40 | 20 20 40 40 Greatest Overweight (x) 1 | 1 . . . Average Overweight (x) . | . . . . Largest Inventory Capacity 5 | 5 5 5 5 Average Capacity 5 | 5 5 5 5 Most Carried 5 | 4 5 5 5 Average Carried 4 | 2 4 4 4 Final Capacity 5 | 5 5 5 5 Final Carried 5 | 2 5 5 5 Class Distribution -------------------- 77% | Mutant 22% | Scavenger-Mutant Dominant Class ---------------- Mutant | -10/Materials Mutant | -9/Materials Mutant | -8/Materials Resources | -11 -10 -9 -8 ----------- Run | Scr Mat Mat Mat Matter Collected 458 | 217 83 140 18 Remotely . | . . . . Salvage Created 1409 | . 286 906 217 Parts 73 | . 16 43 14 Haulers Intercepted 6 | . 1 5 . Recyclers Shooed 1 | . . 1 . Parts Field Recycled . | . . . . Retrieved Matter . | . . . . Parts Self-Destructed . | . . . . Prevented . | . . . . Kills | -11 -10 -9 -8 ------- Run | Scr Mat Mat Mat Combat Hostiles Destroyed 32 | . 7 18 7 Guns 14 | . 7 7 . Cannons 8 | . . 5 3 AOE 10 | . . 6 4 Classes Destroyed 11 | . 5 4 2 Worker 1 | . . . 1 Builder 1 | . . 1 . Tunneler 1 | . . 1 . Hauler 6 | . 1 5 . Recycler 1 | . . . 1 Operator 2 | . 1 . 1 Watcher 1 | . 1 . . Swarmer 10 | . 3 3 4 Grunt 17 | . 4 10 3 Brawler 1 | . . 1 . Sentry 4 | . . 4 . Best Kill Streak 10 | . 4 10 9 Combat Bots Only 7 | . 3 6 7 Max Kills in Single Turn 3 | . 1 2 3 Gunslinging . | . . . . Exploded 3 | . . 2 3 Melee . | . . . . Uniques/NPCs Destroyed . | . . . . Combat | -11 -10 -9 -8 -------- Run | Scr Mat Mat Mat Damage Taken 1215 | . 200 745 270 Core 278 | . 61 154 63 Absorbed by Shields . | . . . . Core Remaining (%) 78 | 100 75 61 . Volleys Fired 93 | . 25 56 12 Largest 2 | . 2 2 2 Hottest 118 | . 100 118 118 Shots Fired 180 | . 50 111 19 Gun 130 | . 50 78 2 Cannon 42 | . . 30 12 Launcher 8 | . . 3 5 Special . | . . . . Kinetic . | . . . . Thermal 172 | . 50 108 14 Explosive 8 | . . 3 5 Electromagnetic . | . . . . Robot Hit Streak 15 | . 13 15 5 Robot Miss Streak 3 | . 2 3 2 Penetration Max . | . . . . Secondary Targets . | . . . . Shots Hit Robots 122 | . 33 78 11 Core Hits 70 | . 16 39 15 Critical Kills . | . . . . Critical Parts Destroyed . | . . . . Critical Strikes 12 | . 5 7 . Burn 12 | . 5 7 . Melee Attacks . | . . . . Impact . | . . . . Slashing . | . . . . Piercing . | . . . . Sneak Attacks . | . . . . Combat Hostiles . | . . . . Follow-up Attacks . | . . . . Damage Inflicted 2527 | . 408 1518 601 Guns 1142 | . 408 734 . Cannons 609 | . . 447 162 Explosions 776 | . . 337 439 Melee . | . . . . Ramming . | . . . . Kinetic . | . . . . Thermal 1751 | . 408 1181 162 Explosive 776 | . . 337 439 Electromagnetic . | . . . . Impact . | . . . . Slashing . | . . . . Piercing . | . . . . Highest Corruption . | . . . . Average Corruption . | . . . . Corruption Purged . | . . . . Corruption Blocked . | . . . . Overload Shots . | . . . . Overflow Damage 41 | . . . 41 Projectiles . | . . . . Explosions 41 | . . . 41 Melee . | . . . . Knockbacks . | . . . . Impact . | . . . . Kinetic . | . . . . Secondary . | . . . . Self-Inflicted Damage 115 | . . 17 98 Shots 6 | . . 1 5 Rammed . | . . . . Targets Rammed . | . . . . Kicked . | . . . . Crushed . | . . . . Highest Temperature 273 | . 273 108 8 Average Temperature 55 | . 84 33 3 Received Heat Transfer 375 | . 54 267 54 Effects 1 | . 1 . . Energy Bleed 1 | . 1 . . Siege Activations . | . . . . Robots Corrupted . | . . . . Combat Hostiles . | . . . . Parts Fried . | . . . . Impact Corruptions . | . . . . Robots Melted 1 | . . 1 . Combat Hostiles . | . . . . Parts Melted 11 | . 2 8 1 Heat Transferred 5402 | . 1591 3515 296 Parts Sabotaged . | . . . . Parts Stolen . | . . . . Parts Stripped . | . . . . Power Chain Reactions . | . . . . Missiles Intercepted . | . . . . Alert | -11 -10 -9 -8 ------- Run | Scr Mat Mat Mat Peak Influence 500 | . 233 500 378 Initial 196 | . . 98 196 Average 188 | . 120 250 243 Maximum Alert Level 2 | . 1 2 1 Low Security (%) 56 | 100 72 47 10 Level 1 33 | . 27 30 89 Level 2 10 | . . 21 . Level 3 . | . . . . Level 4 . | . . . . Level 5 . | . . . . High Security . | . . . . Max Security . | . . . . Squads Dispatched 4 | . 1 1 2 Investigation 2 | . . 1 1 Extermination . | . . . . Reinforcement 2 | . 1 . 1 Assault . | . . . . Garrison . | . . . . Intercept . | . . . . Searches Triggered . | . . . . Construction Impeded . | . . . . Haulers Reinforced . | . . . . Active Scanning Responses . | . . . . Cargo Convoy Interrupts . | . . . . Stealth | -11 -10 -9 -8 --------- Run | Scr Mat Mat Mat Distress Signals 5 | . . 5 . Communications Jammed . | . . . . Distress Signals . | . . . . Times Spotted 48 | . 14 26 8 Peak Tracking Total 8 | . 4 8 5 Tactical Retreats 1 | . 1 . . Traps | -11 -10 -9 -8 ------- Run | Scr Mat Mat Mat Traps Triggered 2 | . . 1 1 Indirectly . | . . . . Trap Hack Attempts . | . . . . Triggered . | . . . . Disarmed . | . . . . Reprogrammed . | . . . . Reused . | . . . . Traps Extracted . | . . . . Installed . | . . . . Triggered . | . . . . Machines | -11 -10 -9 -8 ---------- Run | Scr Mat Mat Mat Machines Disabled 1 | . . 1 . Max in Single Turn 1 | . . 1 . Machines Sabotaged . | . . . . Garrisons Compromised . | . . . . Overloaded Fab Kills . | . . . . Hacking | -11 -10 -9 -8 --------- Run | Scr Mat Mat Mat Machines Accessed 4 | . 2 2 . Terminals 3 | . 1 2 . Fabricators . | . . . . Repair Stations . | . . . . Recycling Units 1 | . 1 . . Scanalyzers . | . . . . Garrison Access . | . . . . Total Hacks 8 | . 4 4 . Successful 4 | . 3 1 . Failed 4 | . 1 3 . Catastrophic . | . . . . Database Lockouts . | . . . . Manual 7 | . 3 4 . Terminals 7 | . 3 4 . Fabricators . | . . . . Repair Stations . | . . . . Recycling Units 1 | . 1 . . Scanalyzers . | . . . . Garrison Access . | . . . . Terminal Hacks 1 | . 1 . . Terminal Index 1 | . 1 . . Fabricator Hacks . | . . . . Repair Station Hacks . | . . . . Recycling Unit Hacks 1 | . 1 . . Report Inventory 1 | . 1 . . Scanalyzer . | . . . . Garrison Access Hacks . | . . . . Unauthorized Hacks 2 | . 1 1 . Terminals 2 | . 1 1 . Botnet 2 | . 1 1 . Fabricators . | . . . . Repair Stations . | . . . . Recycling Units . | . . . . Scanalyzers . | . . . . Garrison Access . | . . . . Data Cores Recovered . | . . . . Used . | . . . . Hacking Detections 4 | . 2 2 . Full Trace Events . | . . . . Feedback Events . | . . . . Feedback Blocked . | . . . . Robot Schematics Acquired . | . . . . Robots Built . | . . . . Authchips . | . . . . Time . | . . . . Total Robot Build Rating . | . . . . Part Schematics Acquired . | . . . . Parts Built . | . . . . Authchips . | . . . . Time . | . . . . Total Part Build Rating . | . . . . Parts Repaired . | . . . . Time . | . . . . Parts Recycled . | . . . . Recycled Matter . | . . . . Retrieved Matter . | . . . . Retrieved Components . | . . . . Parts Scanalyzed . | . . . . Part Schematics Acquired . | . . . . Parts Damaged . | . . . . Bothacking | -11 -10 -9 -8 ------------ Run | Scr Mat Mat Mat Used RIF Installer . | . . . . Robots Hacked . | . . . . Non-combat . | . . . . Combat . | . . . . Robot Hacks Applied . | . . . . Relay Couplers Released . | . . . . Fabnet Peak Effective % . | . . . . Robots Rewired . | . . . . Allies Hacked . | . . . . Hacks Repelled . | . . . . Allies | -11 -10 -9 -8 -------- Run | Scr Mat Mat Mat Total Allies . | . . . . Largest Group . | . . . . Highest-Rated Group . | . . . . Highest-Rated Ally . | . . . . Total Orders . | . . . . Ally Attacks . | . . . . Total Damage . | . . . . Kills . | . . . . Allies Corrupted . | . . . . Allies Melted . | . . . . Intel | -11 -10 -9 -8 ------- Run | Scr Mat Mat Mat Robot Analysis Total . | . . . . Derelict Logs Recovered . | . . . . Drone Launches . | . . . . Drone Recoveries . | . . . . Exploration | -11 -10 -9 -8 ------------- Run | Scr Mat Mat Mat Turns Passed 1018 | 45 391 488 94 Spaces Moved 533 | 33 231 223 46 Core 9 | 9 . . . Treads . | . . . . Legs 524 | 24 231 223 46 Wheels . | . . . . Hover . | . . . . Flight . | . . . . Fastest Speed 50 | 50 120 120 120 Average Speed 119 | 106 120 120 120 Slowest Speed 120 | 120 120 120 120 Overloaded Moves . | . . . . Propulsion Burnouts . | . . . . Robots Hopped . | . . . . Cave-ins Triggered . | . . . . Exploration Rate (%) 17 | 3 35 26 7 Regions Visited 3 Branch Regions . Pre-discovered Areas . | . . . . Known Exits Taken . | . . . . Unknown Exits Taken 3 | 1 1 1 . Scrap Searched . | . . . . Spaces Dug . | . . . . Terrain Destroyed 50 | . . 17 33 Melee . | . . . . Projectile . | . . . . AOE 50 | . . 17 33 Terrain Rammed . | . . . . Walls Destroyed . | . . . . Machines Disabled . | . . . . Actions | -11 -10 -9 -8 --------- Run | Scr Mat Mat Mat Total 735 | 41 296 333 65 Wait 56 | . 24 32 . Move 530 | 32 230 222 46 Hop . | . . . . Pick Up 16 | 4 6 4 2 Fast Attach 10 | 3 4 3 . Attach 5 | 2 . 1 2 Detach 1 | . . 1 . Swap 10 | . 1 7 2 Drop 14 | . 6 7 1 Fire 93 | . 25 56 12 Melee . | . . . . Ram . | . . . . Kick . | . . . . Crush . | . . . . Escape Stasis . | . . . . Rewire . | . . . . Trap . | . . . . Miscellaneous . | . . . . Route ------- -11/Scrapyard -10/Materials -9/Materials (discovered 2 exits: [*Mat] / [*Min]) -8/Materials History --------- Turn | Location | Event 17 | -11/Scrapyard | Discovered new exit (range 15) 46 | -11/Scrapyard | Entered Materials 314 | -10/Materials | Build established: Mutant 422 | -10/Materials | Discovered new exit (range 14) 437 | -10/Materials | Entered another Materials area 437 | -9/Materials | Evolved 2 slots: Propulsion x2 539 | -9/Materials | Discovered new exit (range 12) 868 | -9/Materials | Discovered new exit (range 10) 925 | -9/Materials | Entered another Materials area 925 | -8/Materials | Evolved 2 slots: Utility x2 1019 | -8/Materials | Self-destructed Last Messages --------------- 00986_ K-01 Serf collects debris. 00989_ Destroyed Flight Unit. 00989_ S-10 Pest destroyed. 00989_ Destroyed Flight Unit. 00989_ K-01 Serf destroyed. 00989_ S-10 Pest destroyed. 00993_ U-05 Engineer builds a Wall. 00998_ R-06 Scavenger collects Wheel. 01000_ R-06 Scavenger collects Med. Matter Pod. 01002_ S-10 Pest destroyed. 01004_ R-06 Scavenger collects Flight Unit. 01006_ R-06 Scavenger destroyed. 01008_ Aluminum Leg destroyed. 01008_ Destroyed Aluminum Leg. 01011_ Aluminum Leg destroyed. 01011_ G-47 Trooper destroyed. 01014_ U-05 Engineer lays Concrete. 01016_ Hrd. Light Armor Plating destroyed. 01017_ Imp. Heat Sink melted. 01017_ G-47 Trooper destroyed. Map ----- +----------------------------------------------------+ | ?????????????????????????????????? | | ?????????????????????????????????? | | ?????????????????????????????????? | | ?????????????????????????????????? | | ?????????????????????????????????? | | ?????????????????????????????????? | | ?????????????????????????????????? | | ?????????????????????????????????? | | ????????? ?????????????????????? | | ????????? #???????????????????? | | ????????? #???????????????????? | | ????????? #??? ???????????????? | | ????? +??? ??????????????? | | ????? """ #?? u ??????????????? | | ????? """ #? #???????????????? | | ??????""" # #???????????????? | | ?????? # #???????????????? | | ??????# # ## #???????????????? | | ?????## #???????????????? | | ????## #???????????????? | | ????# ????????????????? | | ????# !!% #???????????????????? | | ?????# *%[ ##???????????????????? | | ????## = #???????????????????? | | ????# #???????????????????? | | ??#### @ #???????????????????? | | ??#* ##???????????????????? | | ??#* ###????????????????????? | | ??#!! #??????????????????????? | | ??#!! #??????????????????????? | | ??#!! #??????????????????????? | | ??#!! ########???????????????? | | ??##### #= #???????????????? | | ??????# # #???????????????? | | ??????# # !!!#???????????????? | | ??????# + !!!#???????????????? | | ??????# # !! #???????????????? | | ??????# # #???????????????? | | ####### ########???????????????? | | #== # # #???????????????? | | #== # # """ #???????????????? | | #= # # """ #???????????????? | | # / + + """ #???????????????? | | # = # # #???????????????? | | # "T" # # [ #???????????????? | | # # ########???????????????? | | ###########??????????????????????? | | ?????????????????????????????????? | | ?????????????????????????????????? | | ?????????????????????????????????? | +----------------------------------------------------+ Best States ------------- Heat Dissipation 53 Energy Generation 16 Energy Capacity 290 Matter Stores 300 Matter Capacity 450 Sight Range 16 Robot Scan Range 14 Terrain Scan Density 10 Armor Coverage 150 Evasion (%) 55 Target Analysis 5 Defensive Hacking 10 Item Schematics ----------------- None Robot Schematics ------------------ None Fabricated ------------ Nothing Alien Tech Used ----------------- None Achievements -------------- None Challenges ------------ None Game ------ Seed PhysicsStormImmobilizer Manual? 0 Play Time 00:14:35 Cumulative 138.0 hours Start 2022.07.23 @ 13:31:45 End 2022.07.24 @ 13:31:20 Sessions 3 Manual Loads 0 Difficulty Rogue Special Mode None Game No. 180 Rogue 180 Adventurer 0 Explorer 0 Win Type - Total 0 Types 0/0/0/0/0/0/0/0/0 Lore% 44 Gallery% 48 Achievement% 33 Wizard Run 0 Options --------- ASCII 0 Keyboard 1 Movement Vi Keybinds 0 Fullscreen 0 Font 20/SmallcapsGlow Map View 76x50 Tactical HUD 1 Map Filters NONE Filters NONE Steam 1 RUN: 63ea5714-9a21-4433-936d-b358a1849302